bitfinex-derivatives/quotes_ETHF0:USTF0_20260113
["timestamp","ask_amount","ask_price","bid_price","bid_amount"]
[1768293538753,0.8862429,3133.4,3132.7,1.08857822]
[1768293540155,0.8862429,3133.4,3132.6,1.08857822]
[1768293540354,1.02493077,3133.4,3132.6,1.08857822]
[1768293540653,0.8862429,3133.3,3132.6,1.08857822]
[1768293540855,0.8862429,3133.3,3132.5,1.08857822]
[1768293540856,1.02493077,3133.3,3132.5,1.08857822]
[1768293541161,0.8862429,3133.2,3132.5,1.08857822]
[1768293543463,0.8862429,3133.2,3132.0,1.08857822]
[1768293543866,1.22726609,3133.1,3132.2,1.08857822]
[1768293544066,0.13868787,3133.1,3132.2,1.08857822]
[1768293544764,1.22726609,3133.1,3132.0,1.08857822]
[1768293544969,1.23292844,3132.9,3131.8,0.00399872]
[1768293545266,0.14435022,3132.9,3132.0,1.08857822]
[1768293546871,0.14435022,3132.9,3132.2,1.08857822]
[1768293547165,0.14435022,3133.3,3132.6,1.08857822]
[1768293547368,0.8915312,3133.2,3132.6,1.08857822]
[1768293547565,0.8915312,3133.1,3132.6,1.08857822]
[1768293547869,0.8915312,3133.0,3132.6,1.08857822]
[1768293548070,0.14435022,3133.3,3132.6,1.08857822]
[1768293548257,0.89149701,3133.2,3132.6,1.08857822]
[1768293548457,0.89149701,3133.1,3132.6,1.08857822]
[1768293548770,0.14435022,3133.3,3132.6,1.08857822]
[1768293548960,0.89148216,3133.2,3132.6,1.08857822]
[1768293549171,0.89148216,3133.1,3132.6,1.08857822]
[1768293549370,0.14435022,3133.3,3132.6,1.08857822]
[1768293549569,0.8915007,3133.2,3132.6,1.08857822]
[1768293549769,0.8915007,3133.1,3132.6,1.08857822]
[1768293549970,0.14435022,3133.3,3132.5,1.08857822]
[1768293550270,0.89150846,3133.2,3132.0,1.08857822]
[1768293550470,0.89150846,3133.1,3132.4,1.08857822]
[1768293550681,0.14435022,3133.3,3132.4,1.08857822]
[1768293550977,0.89156848,3133.2,3132.4,1.08857822]
[1768293551178,0.89156848,3133.1,3132.4,1.08857822]
[1768293551378,0.89156848,3133.0,3132.0,1.08857822]
[1768293551577,0.14435022,3133.3,3132.5,1.08857822]
[1768293551772,0.89158988,3133.2,3132.5,1.08857822]
[1768293551968,0.89158988,3133.1,3132.5,1.08857822]
[1768293552272,0.14435022,3133.3,3132.5,1.08857822]
[1768293552471,0.89157728,3133.2,3132.5,1.08857822]
[1768293552674,0.89157728,3133.1,3132.5,1.08857822]
[1768293552976,0.14435022,3133.3,3132.5,1.08857822]
[1768293553177,0.89157728,3133.2,3132.5,1.08857822]
[1768293553477,0.89157728,3133.1,3132.5,1.08857822]
[1768293553676,0.14435022,3133.3,3132.5,1.08857822]
[1768293553877,0.89157837,3133.2,3132.5,1.08857822]
[1768293554082,0.89157837,3133.1,3132.4,1.08857822]
[1768293554383,0.89157837,3133.0,3132.4,1.08857822]
[1768293554582,0.14435022,3133.3,3132.4,1.08857822]
[1768293554883,0.89158817,3133.2,3132.4,1.08857822]
[1768293555078,0.89158817,3133.1,3132.4,1.08857822]
[1768293555284,0.14435022,3133.3,3132.4,1.08857822]
[1768293555581,0.89158894,3133.2,3132.4,1.08857822]
[1768293555875,0.89158894,3133.1,3132.4,1.08857822]
[1768293556082,0.14435022,3133.3,3132.4,1.08857822]
[1768293556281,0.89159875,3133.2,3132.4,1.08857822]
[1768293556482,0.89159875,3133.1,3132.4,1.08857822]
[1768293556669,0.89159875,3133.0,3132.4,1.08857822]
[1768293556873,0.14435022,3133.3,3131.8,0.11808341]
[1768293557173,0.89159698,3133.2,3132.3,1.08857822]
[1768293557482,0.89159698,3133.1,3132.3,1.08857822]
[1768293557682,0.89159698,3133.0,3132.3,1.08857822]
[1768293557984,0.13666248,3133.2,3132.3,1.08857822]
[1768293558281,0.89159629,3133.1,3132.3,1.08857822]
[1768293558482,0.89159629,3133.0,3132.3,1.08857822]
[1768293558683,0.13666248,3133.2,3132.3,1.08857822]
[1768293558883,0.89159376,3133.1,3132.3,1.08857822]
[1768293559082,0.13666248,3133.2,3132.3,1.08857822]
[1768293559288,0.89159602,3133.1,3132.3,1.08857822]
[1768293559489,0.89159602,3133.0,3132.3,1.08857822]
[1768293559682,0.13666248,3133.2,3132.3,1.08857822]
[1768293559884,0.89159746,3133.1,3132.3,1.08857822]
[1768293560182,0.89159746,3133.0,3132.3,1.08857822]
[1768293560481,0.13666248,3133.2,3132.3,1.08857822]
[1768293560681,0.89160847,3133.1,3132.3,1.08857822]
[1768293560982,0.89160847,3133.0,3132.3,1.08857822]
[1768293561285,0.13666248,3133.2,3132.3,1.08857822]
[1768293561584,0.89162391,3133.1,3132.3,1.08857822]
[1768293561786,0.89162391,3133.0,3132.3,1.08857822]
[1768293561981,0.89162391,3132.9,3132.3,1.08857822]
[1768293562182,0.13666248,3133.2,3132.5,1.08857822]
[1768293562385,0.89163437,3133.1,3132.5,1.08857822]
[1768293562582,0.89163437,3133.0,3132.5,1.08857822]
[1768293562774,0.89163437,3132.9,3132.5,1.08857822]
[1768293562973,0.13666248,3133.2,3132.5,1.08857822]
[1768293563175,0.89163169,3133.1,3132.5,1.08857822]
[1768293563387,0.89163169,3133.0,3132.5,1.08857822]
[1768293563589,0.89163169,3132.9,3132.5,1.08857822]
[1768293563782,0.13666248,3133.2,3132.5,1.08857822]
[1768293563983,0.89163929,3133.1,3132.5,1.08857822]
[1768293564182,0.89163929,3133.0,3132.5,1.08857822]
[1768293564383,0.89163929,3132.9,3132.5,1.08857822]
[1768293564582,0.13666248,3133.2,3132.5,1.08857822]
[1768293564783,0.89165205,3133.1,3132.5,1.08857822]
[1768293564983,0.89165205,3133.0,3132.5,1.08857822]
[1768293565185,0.89165205,3132.9,3132.5,1.08857822]
[1768293565384,0.13666248,3133.2,3132.5,1.08857822]
[1768293565584,0.89164282,3133.1,3132.5,1.08857822]
[1768293565884,0.89164282,3133.0,3132.5,1.08857822]
[1768293566086,0.89164282,3132.9,3132.5,1.08857822]
[1768293566287,0.13666248,3133.2,3132.5,1.08857822]
[1768293566487,0.89164623,3133.1,3132.5,1.08857822]
[1768293566786,0.89164623,3133.0,3132.5,1.08857822]
[1768293566994,0.89164623,3132.9,3132.5,1.08857822]
[1768293567185,0.13666248,3133.2,3132.5,1.08857822]
[1768293567387,0.89165849,3133.1,3132.5,1.08857822]
[1768293567585,0.89165849,3133.0,3132.5,1.08857822]
[1768293567785,0.89165849,3132.9,3132.5,1.08857822]
[1768293567987,0.13666248,3133.2,3132.5,1.08857822]
[1768293568185,0.89165879,3133.1,3132.5,1.08857822]
[1768293568394,0.89165879,3133.0,3132.5,1.08857822]
[1768293568597,0.89165879,3132.9,3132.5,1.08857822]
[1768293568794,0.13666248,3133.2,3132.5,1.08857822]
[1768293568995,0.89167168,3133.1,3132.5,1.08857822]
[1768293569193,0.89167168,3133.0,3132.5,1.08857822]
[1768293569395,0.89167168,3132.9,3132.4,1.08857822]
[1768293569696,0.13666248,3133.2,3132.4,1.08857822]
[1768293569885,0.89169824,3133.1,3132.4,1.08857822]
[1768293570082,0.89169824,3133.0,3132.4,1.08857822]
[1768293570289,0.89169824,3132.9,3132.4,1.08857822]
[1768293570494,0.13666248,3133.2,3132.4,1.08857822]
[1768293570695,0.89170627,3133.1,3132.4,1.08857822]
[1768293570894,0.89170627,3133.0,3132.4,1.08857822]
[1768293571092,0.13666248,3132.8,3132.1,1.08857822]
[1768293571500,0.13666248,3132.8,3132.3,1.08857822]
[1768293571686,1.08857822,3133.1,3132.3,1.08857822]
[1768293571891,0.89509365,3133.0,3132.1,1.08857822]
[1768293572090,0.89509365,3132.9,3132.3,1.08857822]
[1768293572288,1.2252407,3133.1,3131.8,0.00399872]
[1768293572491,0.89507882,3133.0,3132.3,1.08857822]
[1768293572695,0.89507882,3132.9,3132.3,1.08857822]
[1768293572997,1.2252407,3133.1,3132.3,1.08857822]
[1768293573189,0.89507882,3133.0,3132.3,1.08857822]
[1768293573384,0.89507882,3132.9,3132.3,1.08857822]
[1768293573586,1.2252407,3133.1,3132.3,1.08857822]
[1768293573798,0.89507295,3133.0,3132.3,1.08857822]
[1768293574000,0.89507295,3132.9,3132.3,1.08857822]
[1768293574199,1.2252407,3133.1,3132.3,1.08857822]
[1768293574391,0.89504947,3133.0,3132.3,1.08857822]
[1768293574595,0.89504947,3132.9,3132.3,1.08857822]
[1768293574794,1.2252407,3133.1,3132.2,1.08857822]
[1768293575105,0.89504947,3133.0,3132.2,1.08857822]
[1768293575399,0.89504947,3132.9,3132.2,1.08857822]
[1768293575602,1.2252407,3133.1,3132.2,1.08857822]
[1768293575798,0.89505459,3133.0,3131.8,0.00399872]
[1768293576100,0.89505459,3132.9,3132.2,1.08857822]
[1768293576301,1.2252407,3133.1,3132.2,1.08857822]
[1768293576494,0.89505801,3133.0,3132.2,1.08857822]
[1768293576694,0.89505801,3132.9,3132.2,1.08857822]
[1768293576894,0.13666248,3133.1,3132.2,1.08857822]
[1768293577094,0.89505785,3133.0,3132.2,1.08857822]
[1768293577397,0.89505785,3132.9,3132.2,1.08857822]
[1768293577697,0.13666248,3133.1,3132.2,1.08857822]
[1768293577897,0.89505851,3133.0,3132.2,1.08857822]
[1768293578099,0.89505851,3132.9,3132.2,1.08857822]
[1768293578299,0.13666248,3133.1,3132.2,1.08857822]
[1768293578600,0.89503477,3133.0,3132.2,1.08857822]
[1768293578895,0.89503477,3132.9,3132.2,1.08857822]
[1768293579102,0.13666248,3133.1,3132.2,1.08857822]
[1768293579295,0.89502489,3133.0,3132.2,1.08857822]
[1768293579496,0.89502489,3132.9,3132.2,1.08857822]
[1768293579699,0.13666248,3133.1,3132.2,1.08857822]
[1768293580004,0.89502489,3133.0,3132.2,1.08857822]
[1768293580200,0.89502489,3132.9,3132.4,1.08857822]
[1768293580399,0.13666248,3133.1,3132.4,1.08857822]
[1768293580596,0.89501205,3133.0,3132.4,1.08857822]
[1768293580800,0.89501205,3132.9,3132.4,1.08857822]
[1768293581101,0.13666248,3133.1,3132.4,1.08857822]
[1768293581296,0.8950016,3133.0,3132.4,1.08857822]
[1768293581502,0.8950016,3132.9,3132.4,1.08857822]
[1768293581700,0.13666248,3133.1,3132.3,1.08857822]
[1768293581889,0.89500193,3133.0,3132.3,1.08857822]
[1768293582091,0.89500193,3132.9,3132.3,1.08857822]
[1768293582300,0.13666248,3133.1,3132.3,1.08857822]
[1768293582505,1.03276555,3133.0,3132.2,1.08857822]
[1768293582802,0.89500081,3132.9,3132.2,1.08857822]
[1768293583304,0.89500081,3132.9,3131.9,1.08865572]
[1768293584399,0.00478743,3132.7,3131.8,0.00399872]
[1768293587102,0.14255217,3132.7,3131.8,0.00399872]
[1768293591411,1.03232938,3132.6,3131.8,0.00399872]
[1768293591610,0.14056206,3132.6,3131.8,0.00399872]
[1768293592702,0.89447799,3132.5,3131.8,0.00399872]
[1768293592906,0.14056206,3132.6,3131.6,1.08865572]
[1768293593112,0.13776474,3132.4,3131.4,1.08865572]
[1768293593416,0.13776474,3132.4,3131.2,1.08865572]
[1768293593806,0.13776474,3132.4,3131.2,1.09135397]
[1768293600133,0.13776474,3132.4,3131.2,0.00269825]
[1768293600335,0.13776474,3132.4,3131.2,1.09135397]
[1768293601022,0.13776474,3132.4,3131.2,0.00269825]
[1768293601332,1.03034766,3132.3,3131.2,1.09135397]
[1768293601529,0.13776474,3132.3,3131.4,1.08865572]
[1768293601936,0.00279732,3132.6,3131.6,1.08865572]
[1768293602238,0.8925762,3132.5,3131.8,1.08865572]
[1768293602420,0.8925762,3132.4,3131.8,1.08865572]
[1768293602626,0.00279732,3132.6,3131.8,1.08865572]
[1768293602827,0.8925244,3132.5,3131.8,1.08865572]
[1768293603029,0.8925244,3132.4,3131.4,1.08865572]
[1768293603231,0.00279732,3132.6,3131.4,1.08865572]
[1768293603432,0.89249607,3132.5,3131.4,1.08865572]
[1768293603638,0.89249607,3132.4,3131.4,1.08865572]
[1768293603836,0.14056206,3132.6,3131.4,1.08865572]
[1768293604137,0.89249618,3132.5,3131.4,1.08865572]
[1768293604338,0.89249618,3132.4,3131.4,1.08865572]
[1768293604530,0.14056206,3132.6,3131.4,1.08865572]
[1768293604839,1.02999014,3132.5,3131.4,1.08865572]
[1768293605037,0.89248168,3132.4,3131.4,1.08865572]
[1768293605239,1.02999014,3132.4,3131.4,1.08865572]
[1768293605537,0.89248168,3132.3,3131.4,1.08865572]
[1768293605738,0.13750846,3132.4,3131.4,1.08865572]
[1768293605935,0.89246641,3132.3,3131.4,1.08865572]
[1768293606130,0.13750846,3132.4,3131.4,1.08865572]
[1768293606330,0.89248172,3132.3,3131.4,1.08865572]
[1768293606637,0.13750846,3132.4,3131.4,1.08865572]
[1768293606830,0.89246118,3132.3,3131.4,1.08865572]
[1768293607030,0.13750846,3132.4,3131.4,1.08865572]
[1768293607339,0.89246116,3132.3,3131.4,1.08865572]
[1768293607638,0.00279732,3132.6,3131.4,1.08865572]
[1768293607834,0.89247352,3132.5,3131.4,1.08865572]
[1768293608041,0.89247352,3132.4,3131.4,1.08865572]
[1768293608239,0.89250772,3132.3,3131.4,1.08865572]
[1768293608438,0.00279732,3132.6,3131.4,1.08865572]
[1768293608735,0.89250872,3132.5,3131.4,1.08865572]
[1768293608937,0.89250872,3132.4,3131.4,1.08865572]
[1768293609138,0.89250872,3132.3,3131.4,1.08865572]
[1768293609437,0.00279732,3132.6,3131.4,1.08865572]
[1768293609637,0.89256136,3132.5,3131.4,1.08865572]
[1768293609937,0.89256136,3132.4,3131.4,1.08865572]
[1768293610139,0.89256136,3132.3,3131.4,1.08865572]
[1768293610340,0.00279732,3132.6,3131.4,1.08865572]
[1768293610540,0.89263188,3132.5,3131.5,1.08865572]
[1768293610840,0.89263188,3132.4,3131.5,1.08865572]
[1768293611042,0.89263188,3132.3,3131.5,1.08865572]
[1768293611338,0.00279732,3132.6,3131.5,1.08865572]
[1768293611539,0.89272446,3132.5,3131.5,1.08865572]
[1768293611732,0.89272446,3132.4,3131.5,1.08865572]
[1768293612037,0.00279732,3132.6,3131.5,1.08865572]
[1768293612243,0.89272429,3132.5,3131.5,1.08865572]
[1768293612431,0.89272429,3132.4,3131.5,1.08865572]
[1768293612628,0.00279732,3132.6,3131.5,1.08865572]
[1768293612831,0.89283727,3132.5,3131.5,1.08865572]
[1768293613037,0.89283727,3132.4,3131.5,1.08865572]
[1768293613240,0.00279732,3132.6,3131.5,1.08865572]
[1768293613439,0.89297723,3132.5,3131.5,1.08865572]
[1768293613742,0.89297723,3132.4,3131.5,1.08865572]
[1768293614043,0.13750846,3132.5,3131.5,1.08865572]
[1768293614242,0.89297774,3132.4,3131.5,1.08865572]
[1768293614443,0.13750846,3132.5,3131.5,1.08865572]
[1768293614647,0.89315073,3132.4,3131.5,1.08865572]
[1768293614938,0.13750846,3132.5,3131.5,1.08865572]
[1768293615146,0.89315073,3132.4,3131.5,1.08865572]
[1768293615339,0.13750846,3132.5,3131.5,1.08865572]
[1768293615646,0.8932669,3132.4,3131.5,1.08865572]
[1768293615848,0.13750846,3132.5,3131.5,1.08865572]
[1768293616142,0.89326701,3132.4,3131.5,1.08865572]
[1768293616341,0.89326701,3132.3,3131.5,1.08865572]
[1768293616538,0.13750846,3132.5,3131.5,1.08865572]
[1768293616734,0.89338983,3132.4,3131.5,1.08865572]
[1768293616931,0.89338983,3132.3,3131.5,1.08865572]
[1768293617137,0.13750846,3132.5,3131.5,1.08865572]
[1768293617335,0.89347777,3132.4,3131.5,1.08865572]
[1768293617542,0.89347777,3132.3,3131.5,1.08865572]
[1768293617846,0.13750846,3132.5,3131.5,1.08865572]
[1768293618038,0.89349347,3132.4,3131.5,1.08865572]
[1768293618240,0.89349347,3132.3,3131.5,1.08865572]
[1768293618541,0.13750846,3132.5,3131.5,1.08865572]
[1768293618735,1.03326411,3132.4,3131.5,1.08865572]
[1768293618936,0.89361226,3132.3,3131.5,1.08865572]
[1768293619139,0.13965185,3132.4,3131.5,1.08865572]
[1768293619338,0.89374574,3132.3,3131.5,1.08865572]
[1768293619637,0.13965185,3132.4,3131.5,1.08865572]
[1768293619837,0.89376001,3132.3,3131.5,1.08865572]
[1768293620038,0.13965185,3132.4,3131.2,0.00269825]
[1768293620336,0.89393783,3132.3,3131.3,1.08865572]
[1768293620537,0.13965185,3132.4,3131.3,1.08865572]
[1768293620734,0.89394884,3132.3,3131.3,1.08865572]
[1768293620936,0.13965185,3132.4,3131.3,1.08865572]
[1768293621133,0.89394884,3132.3,3131.3,1.08865572]
[1768293621341,0.13965185,3132.4,3131.3,1.08865572]
[1768293621542,0.89422915,3132.3,3131.3,1.08865572]
[1768293621742,0.13965185,3132.4,3131.3,1.08865572]
[1768293621941,0.89422915,3132.3,3131.3,1.08865572]
[1768293622136,0.13965185,3132.4,3131.3,1.08865572]
[1768293622343,0.89443801,3132.3,3131.3,1.08865572]
[1768293622541,0.89443801,3132.2,3131.3,1.08865572]
[1768293622842,0.13965185,3132.4,3131.3,1.08865572]
[1768293623040,0.894442,3132.3,3131.3,1.08865572]
[1768293623241,0.894442,3132.2,3131.3,1.08865572]
[1768293623440,0.13965185,3132.4,3131.3,1.08865572]
[1768293623644,0.89460801,3132.3,3131.3,1.08865572]
[1768293623942,0.89460801,3132.2,3131.3,1.08865572]
[1768293624141,0.13965185,3132.4,3131.3,1.08865572]
[1768293624346,0.89460731,3132.3,3131.3,1.08865572]
[1768293624643,0.89460731,3132.2,3131.3,1.08865572]
[1768293624845,0.13965185,3132.4,3131.3,1.08865572]
[1768293625040,0.89460849,3132.3,3131.3,1.08865572]
[1768293625234,0.89460849,3132.2,3131.3,1.08865572]
[1768293625446,0.13965185,3132.4,3131.3,1.08865572]
[1768293625747,0.89460976,3132.3,3131.3,1.08865572]
[1768293625944,0.89460976,3132.2,3131.3,1.08865572]
[1768293626134,0.13965185,3132.4,3131.3,1.08865572]
[1768293626334,0.89461001,3132.3,3131.3,1.08865572]
[1768293626637,0.89461001,3132.2,3131.3,1.08865572]
[1768293626834,0.13965185,3132.4,3131.3,1.08865572]
[1768293627039,0.89461125,3132.3,3131.3,1.08865572]
[1768293627246,0.89461125,3132.2,3131.3,1.08865572]
[1768293627449,0.13965185,3132.4,3131.3,1.08865572]
[1768293627750,0.89461296,3132.3,3131.3,1.08865572]
[1768293627946,0.89461296,3132.2,3131.3,1.08865572]
[1768293628149,0.13965185,3132.4,3131.3,1.08865572]
[1768293628345,0.89461374,3132.3,3131.3,1.08865572]
[1768293628547,0.89461374,3132.2,3131.3,1.08865572]
[1768293628846,0.13965185,3132.4,3131.3,1.08865572]
[1768293629045,0.89461484,3132.3,3131.3,1.08865572]
[1768293629244,0.89461484,3132.2,3131.3,1.08865572]
[1768293629446,0.13965185,3132.4,3131.3,1.08865572]
[1768293629746,0.89461854,3132.3,3131.3,1.08865572]
[1768293629947,0.13965185,3132.4,3131.3,1.08865572]
[1768293629948,0.89461854,3132.2,3131.3,1.08865572]
[1768293630157,0.13965185,3132.4,3131.3,1.08865572]
[1768293630456,0.89461854,3132.3,3131.3,1.08865572]
[1768293630642,0.89461854,3132.2,3131.3,1.08865572]
[1768293630843,0.13965185,3132.4,3131.3,1.08865572]
[1768293631044,0.13965185,3132.4,3131.2,0.00269825]
[1768293631045,0.8939607,3132.3,3131.8,1.08865572]
[1768293631242,0.00279732,3132.6,3131.8,1.08865572]
[1768293632849,0.36886781,3132.5,3131.8,1.08865572]
[1768293633153,0.00279732,3132.6,3131.8,1.08865572]
[1768293633346,0.36885055,3132.5,3131.8,1.08865572]
[1768293633551,0.00279732,3132.6,3131.8,1.08865572]
[1768293643160,0.88960579,3132.5,3131.8,1.08865572]
[1768293643461,0.88960579,3132.4,3131.8,1.08865572]
[1768293643664,0.00279732,3132.6,3131.8,1.08865572]
[1768293643963,0.88959924,3132.5,3131.8,1.08865572]
[1768293644159,0.88959924,3132.4,3131.8,1.08865572]
[1768293644358,0.00279732,3132.6,3131.8,1.08865572]
[1768293644557,0.8895962,3132.5,3131.8,1.08865572]
[1768293644755,0.8895962,3132.4,3131.8,1.08865572]
[1768293644956,0.00279732,3132.6,3131.8,1.08865572]
[1768293645163,0.8895962,3132.5,3131.8,1.08865572]
[1768293645363,0.8895962,3132.4,3132.0,1.0888085]
[1768293645565,0.00279732,3132.6,3132.0,1.0888085]
[1768293645863,0.88959605,3132.5,3132.0,1.0888085]
[1768293646064,0.88959605,3132.4,3132.0,1.0888085]
[1768293646265,0.00279732,3132.6,3132.0,1.0888085]
[1768293646463,0.88959773,3132.5,3132.0,1.0888085]
[1768293646653,0.88959773,3132.4,3132.0,1.0888085]
[1768293646856,0.00279732,3132.6,3132.0,1.0888085]
[1768293647054,0.88959369,3132.5,3132.0,1.0888085]
[1768293647257,0.88959369,3132.4,3132.0,1.0888085]
[1768293647466,0.00279732,3132.6,3132.0,1.0888085]
[1768293647664,0.88959913,3132.5,3132.0,1.0888085]
[1768293647965,0.88959913,3132.4,3132.0,1.0888085]
[1768293648166,0.00279732,3132.6,3132.0,1.0888085]
[1768293648365,0.88960149,3132.5,3132.0,1.0888085]
[1768293648559,0.88960149,3132.4,3132.0,1.0888085]
[1768293648860,0.00279732,3132.6,3132.0,1.0888085]
[1768293649057,0.88960149,3132.5,3132.0,1.0888085]
[1768293649259,0.88960149,3132.4,3132.0,1.0888085]
[1768293649460,0.00279732,3132.6,3132.0,1.0888085]
[1768293649659,0.88961403,3132.5,3132.0,1.0888085]
[1768293649860,0.88961403,3132.4,3132.0,1.0888085]
[1768293650159,0.00279732,3132.6,3132.0,1.0888085]
[1768293650359,0.8896278,3132.5,3132.0,1.0888085]
[1768293650561,0.8896278,3132.4,3132.0,1.0888085]
[1768293650861,0.00279732,3132.6,3132.0,1.0888085]
[1768293651062,0.88963184,3132.5,3132.0,1.0888085]
[1768293651356,0.88963184,3132.4,3132.0,1.0888085]
[1768293651559,0.00279732,3132.6,3132.0,1.0888085]
[1768293651761,0.88964791,3132.5,3132.0,1.0888085]
[1768293651960,0.88964791,3132.4,3132.0,1.0888085]
[1768293652164,0.88964791,3132.3,3132.0,1.0888085]
[1768293652360,0.00279732,3132.6,3132.0,1.0888085]
[1768293652561,0.88966677,3132.5,3132.0,1.0888085]
[1768293652769,0.88966677,3132.4,3132.0,1.0888085]
[1768293652973,0.88966677,3132.3,3132.0,1.0888085]
[1768293653268,0.00279732,3132.6,3132.0,1.0888085]
[1768293653473,0.88968887,3132.5,3132.0,1.0888085]
[1768293653674,0.88968887,3132.4,3132.0,1.0888085]
[1768293653972,0.88968887,3132.3,3132.0,1.0888085]
[1768293654175,0.00279732,3132.6,3132.0,1.0888085]
[1768293654475,0.88971454,3132.5,3132.0,1.0888085]
[1768293654669,0.88971454,3132.4,3132.0,1.0888085]
[1768293654869,0.00279732,3132.6,3132.0,1.0888085]
[1768293654870,0.88971454,3132.3,3132.0,1.0888085]
[1768293655066,0.00279732,3132.6,3132.0,1.0888085]
[1768293655266,0.88971453,3132.5,3132.0,1.0888085]
[1768293655467,0.88971453,3132.4,3132.0,1.0888085]
[1768293655666,0.00279732,3132.6,3132.0,1.0888085]
[1768293655667,0.88971453,3132.3,3132.0,1.0888085]
[1768293655875,0.00279732,3132.6,3132.0,1.0888085]
[1768293656172,0.88974445,3132.5,3132.0,1.0888085]
[1768293656373,0.88974445,3132.4,3132.0,1.0888085]
[1768293656572,0.88974445,3132.3,3132.0,1.0888085]
[1768293656774,0.00279732,3132.6,3132.0,1.0888085]
[1768293657075,0.88978047,3132.5,3132.0,1.0888085]
[1768293657274,0.88978047,3132.4,3132.0,1.0888085]
[1768293657573,0.88978047,3132.3,3132.0,1.0888085]
[1768293657768,0.88978047,3132.2,3131.7,1.0888085]
[1768293657967,1.0888085,3132.5,3131.7,1.0888085]
[1768293658168,0.88983233,3132.4,3131.7,1.0888085]
[1768293658470,0.88983233,3132.3,3131.7,1.0888085]
[1768293658665,0.88983233,3132.2,3131.7,1.0888085]
[1768293658867,1.0888085,3132.5,3131.7,1.0888085]
[1768293659166,0.88986395,3132.4,3131.7,1.0888085]
[1768293659366,0.88986395,3132.3,3131.7,1.0888085]
[1768293659565,0.88986395,3132.2,3131.7,1.0888085]
[1768293659764,1.0888085,3132.5,3131.7,1.0888085]
[1768293659970,0.88989795,3132.4,3131.7,1.0888085]
[1768293660273,0.88989795,3132.3,3131.7,1.0888085]
[1768293660474,0.88989795,3132.2,3131.7,1.0888085]
[1768293660775,1.0888085,3132.5,3131.7,1.0888085]
[1768293661075,0.88782568,3132.4,3131.7,1.0888085]
[1768293661275,0.88782568,3132.3,3131.7,1.0888085]
[1768293661475,0.14597074,3132.6,3131.9,1.0888085]
[1768293661476,0.88782568,3132.2,3131.9,1.0888085]
[1768293661776,0.14597074,3132.6,3131.9,1.0888085]
[1768293661977,0.8877982,3132.5,3131.9,1.0888085]
[1768293662168,0.8877982,3132.4,3131.9,1.0888085]
[1768293662475,0.14597074,3132.6,3131.8,1.0888085]
[1768293662476,0.8877982,3132.3,3131.8,1.0888085]
[1768293662677,0.14597074,3132.6,3131.8,1.0888085]
[1768293662974,0.88777487,3132.5,3131.8,1.0888085]
[1768293663174,0.88777487,3132.4,3131.8,1.0888085]
[1768293663474,0.88777487,3132.3,3131.8,1.0888085]
[1768293663676,0.14597074,3132.6,3131.8,1.0888085]
[1768293663873,0.88774973,3132.5,3132.3,1.0888085]
[1768293664074,0.14317342,3133.2,3132.5,1.0888085]
[1768293664375,0.14317342,3133.2,3132.3,1.0888085]
[1768293664574,0.14317342,3133.0,3131.9,0.00478743]
[1768293664775,1.0888085,3133.1,3132.0,1.0888085]
[1768293664776,0.14692618,3132.8,3132.0,1.0888085]
[1768293664966,0.15062984,3132.8,3132.0,1.0888085]
[1768293669877,0.15062984,3132.8,3131.9,0.00478743]
[1768293670081,0.15062984,3132.8,3132.1,1.0888085]
[1768293670673,0.15062984,3132.8,3132.3,1.0888085]
[1768293671776,0.15062984,3132.8,3132.1,1.0888085]
[1768293672285,0.15062984,3132.8,3132.3,1.0888085]
[1768293672586,0.15062984,3132.8,3132.1,1.0888085]
[1768293672776,0.15062984,3132.8,3132.3,1.0888085]
[1768293674984,0.15062984,3132.8,3132.1,1.0888085]
[1768293675284,0.15062984,3132.8,3132.3,1.0888085]
[1768293675487,0.00370366,3132.8,3132.3,1.0888085]
[1768293677174,0.00370366,3132.8,3132.5,1.0888085]
[1768293677379,0.14434631,3133.2,3132.5,1.0888085]
[1768293677583,1.02669857,3133.1,3132.2,1.0888085]
[1768293677781,0.88235226,3133.0,3132.2,1.0888085]
[1768293677983,0.14434631,3133.1,3132.2,1.0888085]
[1768293678183,0.88233992,3133.0,3132.2,1.0888085]
[1768293678488,0.00412159,3133.0,3132.2,1.0888085]
[1768293678988,0.00412159,3133.0,3131.9,0.00478743]
[1768293679289,0.00412159,3133.0,3132.3,1.0888085]
[1768293679685,0.14434631,3132.9,3132.2,1.0888085]
[1768293680592,0.14434631,3132.9,3132.4,1.0888085]
[1768293685994,0.14434631,3132.9,3132.2,1.0888085]
[1768293686200,0.14434631,3132.9,3132.1,1.0888085]
[1768293686396,0.14434631,3132.9,3132.3,1.0888085]
[1768293690000,0.14434631,3132.9,3132.1,1.0888085]
[1768293691703,0.00412159,3133.0,3132.4,1.0888085]
[1768293691898,0.88389029,3132.9,3132.4,1.0888085]
[1768293692099,0.00412159,3133.0,3132.4,1.0888085]
[1768293692399,0.88415035,3132.9,3132.4,1.0888085]
[1768293692599,0.88415035,3132.8,3132.4,1.0888085]
[1768293692902,0.00412159,3133.0,3132.4,1.0888085]
[1768293693097,0.88415005,3132.9,3132.4,1.0888085]
[1768293693299,0.88415005,3132.8,3132.4,1.0888085]
[1768293693500,0.88415005,3132.7,3132.4,1.0888085]
[1768293693698,0.00412159,3133.0,3132.4,1.0888085]
[1768293693895,0.88461299,3132.9,3132.4,1.0888085]
[1768293694099,0.88461299,3132.8,3132.4,1.0888085]
[1768293694302,0.88461299,3132.7,3132.4,1.0888085]
[1768293694500,0.00412159,3133.0,3132.4,1.0888085]
[1768293694698,0.88464808,3132.9,3132.4,1.0888085]
[1768293694898,0.88464808,3132.8,3132.4,1.0888085]
[1768293695200,0.88464808,3132.7,3132.4,1.0888085]
[1768293695388,0.00412159,3133.0,3132.4,1.0888085]
[1768293695588,1.03103539,3132.9,3132.3,1.0888085]
[1768293695788,0.88465192,3132.8,3132.3,1.0888085]
[1768293695998,0.88465192,3132.7,3132.3,1.0888085]
[1768293696200,0.14638347,3132.9,3132.3,1.0888085]
[1768293696404,0.8846614,3132.8,3132.3,1.0888085]
[1768293696604,0.8846614,3132.7,3132.3,1.0888085]
[1768293696905,0.14638347,3132.9,3132.3,1.0888085]
[1768293697104,0.88466106,3132.8,3132.3,1.0888085]
[1768293697306,0.88466106,3132.7,3132.3,1.0888085]
[1768293697506,0.14638347,3132.9,3132.3,1.0888085]
[1768293697702,0.88467223,3132.8,3132.3,1.0888085]
[1768293697897,0.88467223,3132.7,3132.3,1.0888085]
[1768293698098,0.14638347,3132.9,3132.3,1.0888085]
[1768293698404,0.88467223,3132.8,3132.3,1.0888085]
[1768293698606,0.88467223,3132.7,3132.3,1.0888085]
[1768293698907,0.14638347,3132.9,3132.3,1.0888085]
[1768293699104,0.88468418,3132.8,3132.3,1.0888085]
[1768293699307,0.88468418,3132.7,3132.3,1.0888085]
[1768293699496,0.14638347,3132.9,3132.3,1.0888085]
[1768293699698,0.88469306,3132.8,3132.3,1.0888085]
[1768293699905,0.88469306,3132.7,3132.3,1.0888085]
[1768293700109,0.14638347,3132.9,3132.3,1.0888085]
[1768293700306,0.88471296,3132.8,3132.3,1.0888085]
[1768293700508,0.88471296,3132.7,3132.3,1.0888085]
[1768293700709,0.14638347,3132.9,3132.3,1.0888085]
[1768293700901,0.88471641,3132.8,3132.3,1.0888085]